bitfinex/quotes_BTCUSD_20250718
["timestamp","ask_amount","ask_price","bid_price","bid_amount"]
[1752874593684,0.35787453,117860.0,117850.0,0.4676123]
[1752874593886,0.35787453,117860.0,117850.0,0.4591273]
[1752874594197,0.34939054,117860.0,117850.0,0.45064223]
[1752874594420,0.34939054,117860.0,117850.0,0.45912737]
[1752874594604,0.33242206,117860.0,117850.0,0.45912737]
[1752874595479,0.33242206,117860.0,117850.0,0.45064223]
[1752874595753,0.32393749,117860.0,117850.0,0.45064223]
[1752874596968,0.32393749,117860.0,117850.0,0.45912744]
[1752874598544,0.31533749,117860.0,117850.0,0.46761258]
[1752874599691,0.32393749,117860.0,117850.0,0.46761258]
[1752874599900,0.31533749,117860.0,117850.0,0.46761258]
[1752874601065,0.31973749,117860.0,117850.0,0.46761258]
[1752874601468,0.31533749,117860.0,117850.0,0.46761258]
[1752874601880,0.31533749,117860.0,117850.0,0.47609765]
[1752874603431,0.31533749,117860.0,117850.0,0.46761258]
[1752874608676,0.31533749,117860.0,117850.0,0.45912744]
[1752874609079,0.31533749,117860.0,117850.0,0.46761251]
[1752874609301,0.32382191,117860.0,117850.0,0.45912744]
[1752874609681,0.10780893,117870.0,117860.0,0.19514582]
[1752874609887,0.10780893,117870.0,117860.0,0.76976472]
[1752874609888,0.2503627,117870.0,117860.0,0.76976472]
[1752874610083,0.25884633,117870.0,117860.0,0.76976472]
[1752874610312,0.25339256,117870.0,117860.0,0.76976472]
[1752874610515,0.12143256,117870.0,117860.0,0.76976472]
[1752874610645,0.25339256,117870.0,117860.0,0.76976472]
[1752874610894,0.25439256,117870.0,117860.0,0.76976472]
[1752874611095,0.25539256,117870.0,117860.0,0.76976472]
[1752874611510,0.26387626,117870.0,117860.0,0.76976472]
[1752874611709,0.27236003,117870.0,117860.0,0.76976472]
[1752874612025,0.28084388,117870.0,117860.0,0.7697648]
[1752874612235,0.44203892,117870.0,117860.0,0.76128059]
[1752874612437,0.27236047,117870.0,117860.0,0.76976472]
[1752874612645,0.26387662,117870.0,117860.0,0.76976472]
[1752874613555,0.26387662,117870.0,117860.0,0.22584582]
[1752874613777,0.27236047,117870.0,117860.0,0.76976472]
[1752874613999,0.25539285,117870.0,117860.0,0.76976472]
[1752874614422,0.26387662,117870.0,117860.0,0.76976472]
[1752874614851,0.25539285,117870.0,117860.0,0.76976472]
[1752874615075,0.25539256,117870.0,117860.0,0.76976472]
[1752874615966,0.26387626,117870.0,117860.0,0.76976472]
[1752874617574,0.27232011,117870.0,117860.0,0.76976472]
[1752874617864,0.26383626,117870.0,117860.0,0.76976472]
[1752874618370,0.27232003,117870.0,117860.0,0.76976472]
[1752874619074,0.28080388,117870.0,117860.0,0.76976472]
[1752874619277,0.27232003,117870.0,117860.0,0.76976472]
[1752874621693,0.44199848,117870.0,117860.0,0.76976472]
[1752874621908,0.45048284,117870.0,117860.0,0.76976487]
[1752874622126,0.12040228,117870.0,117860.0,0.780389]
[1752874622664,0.11191879,117870.0,117860.0,0.780389]
[1752874622877,0.11191879,117870.0,117860.0,0.783349]
[1752874623093,0.12888569,117870.0,117860.0,0.2394301]
[1752874623288,0.12888569,117870.0,117860.0,0.783349]
[1752874623730,0.12677569,117870.0,117860.0,0.783349]
[1752874623936,0.10980886,117870.0,117860.0,0.783349]
[1752874624145,0.11829242,117870.0,117860.0,0.783349]
[1752874625356,0.10980886,117870.0,117860.0,0.783349]
[1752874625501,0.11829235,117870.0,117860.0,0.783349]
[1752874625707,0.12038235,117870.0,117860.0,0.783349]
[1752874625922,0.12886598,117870.0,117860.0,0.783349]
[1752874626208,0.12038235,117870.0,117860.0,0.783349]
[1752874628802,0.12038235,117870.0,117860.0,0.2394301]
[1752874629013,0.12886598,117870.0,117860.0,0.783349]
[1752874629634,0.11189886,117870.0,117860.0,0.783349]
[1752874630188,0.12038235,117870.0,117860.0,0.783349]
[1752874631267,0.25222235,117870.0,117860.0,0.783349]
[1752874632419,0.25222227,117870.0,117860.0,0.783349]
[1752874633151,0.12886576,117870.0,117860.0,0.783349]
[1752874633336,0.26066576,117870.0,117860.0,0.783349]
[1752874634078,0.25218227,117870.0,117860.0,0.783349]
[1752874635641,0.24369886,117870.0,117860.0,0.783349]
[1752874636414,0.25218235,117870.0,117860.0,0.915149]
[1752874640254,0.26066591,117870.0,117860.0,0.915149]
[1752874640668,0.25218235,117870.0,117860.0,0.915149]
[1752874640819,0.26066598,117870.0,117860.0,0.915149]
[1752874641041,0.24369886,117870.0,117860.0,0.915149]
[1752874641301,0.25218235,117870.0,117860.0,0.915149]
[1752874641728,0.26066591,117870.0,117860.0,0.915149]
[1752874641933,0.25218235,117870.0,117860.0,0.915149]
[1752874642371,0.23521552,117870.0,117860.0,0.915149]
[1752874642547,0.24369893,117870.0,117860.0,0.915149]
[1752874645064,0.25218249,117870.0,117860.0,0.915149]
[1752874645303,0.24369893,117870.0,117860.0,0.915149]
[1752874647566,0.24361893,117870.0,117860.0,0.915149]
[1752874648143,0.25210249,117870.0,117860.0,0.915149]
[1752874648541,0.24361893,117870.0,117860.0,0.915149]
[1752874649428,0.24361886,117870.0,117860.0,0.915149]
[1752874651175,0.25210227,117870.0,117860.0,0.915149]
[1752874651581,0.26058576,117870.0,117860.0,0.915149]
[1752874652600,0.25210227,117870.0,117860.0,0.915149]
[1752874653365,0.26058583,117870.0,117860.0,0.915149]
[1752874653735,0.25210227,117870.0,117860.0,0.915149]
[1752874654478,0.23513552,117870.0,117860.0,0.915149]
[1752874654607,0.23304552,117870.0,117860.0,0.915149]
[1752874655612,0.10132552,117870.0,117860.0,1.27261873]
[1752874656604,0.09932552,117870.0,117860.0,1.27261873]
[1752874657389,0.09932552,117870.0,117860.0,1.27361873]
[1752874664156,0.025469,117920.0,117880.0,0.20016406]
[1752874664174,0.01142998,117930.0,117920.0,0.19504661]
[1752874664371,0.08181313,117930.0,117920.0,0.62910606]
[1752874664729,0.08196237,117930.0,117920.0,0.62910606]
[1752874664960,0.08196237,117930.0,117920.0,0.35714661]
[1752874665136,0.08196237,117930.0,117920.0,0.71953295]
[1752874666123,0.01358922,117930.0,117920.0,0.71953295]
[1752874666611,0.01658922,117930.0,117920.0,0.71953295]
[1752874667242,0.01858922,117930.0,117920.0,0.71953295]
[1752874668740,0.11881768,117930.0,117900.0,0.20073528]
[1752874669059,0.01696388,117890.0,117880.0,0.20076406]
[1752874669255,0.17402089,117910.0,117890.0,0.18661434]
[1752874669256,0.17822092,117910.0,117890.0,0.18661434]
[1752874669418,0.08752028,117900.0,117890.0,0.6890423]
[1752874669620,0.01897237,117900.0,117890.0,0.7221423]
[1752874669830,0.00201,117900.0,117890.0,0.7221423]
[1752874670030,0.01995129,117910.0,117900.0,0.19507991]
[1752874670308,0.01348054,117910.0,117900.0,0.56594751]
[1752874670514,0.01063964,117910.0,117900.0,0.60200751]
[1752874670935,0.00215918,117910.0,117900.0,0.73356751]
[1752874671131,0.00014918,117910.0,117900.0,0.73356751]
[1752874672415,0.00114918,117910.0,117900.0,0.73356751]
[1752874679175,0.00114918,117910.0,117900.0,1.18146413]
[1752874679564,0.00114918,117910.0,117900.0,0.81907779]
[1752874680063,0.00114918,117910.0,117900.0,0.73352751]
[1752874680299,0.00114918,117910.0,117900.0,0.37114117]
[1752874680300,0.01163957,117910.0,117900.0,0.37114117]
[1752874680473,0.00215918,117910.0,117900.0,0.73056751]
[1752874681028,0.00215918,117910.0,117900.0,0.73562751]
[1752874681813,0.00215918,117910.0,117900.0,0.73662751]
[1752874682221,0.00215918,117910.0,117900.0,0.37424117]
[1752874682611,0.00215918,117910.0,117900.0,0.73662751]
[1752874682766,0.00215918,117910.0,117900.0,0.60510751]
[1752874682970,0.01063957,117910.0,117900.0,0.73662751]
[1752874683461,0.00215918,117910.0,117900.0,0.73662751]
[1752874683666,0.01063972,117910.0,117900.0,0.73356751]
[1752874683901,0.18341061,117910.0,117900.0,0.58308492]
[1752874684075,0.0307513,117910.0,117900.0,0.73152765]
[1752874684286,0.03075122,117910.0,117900.0,0.73152765]
[1752874684477,0.03075115,117910.0,117900.0,0.36914131]
[1752874684685,0.0222704,117910.0,117900.0,0.73152765]
[1752874685757,0.03075115,117910.0,117900.0,0.73152765]
[1752874686679,0.0222704,117910.0,117900.0,0.73152765]
[1752874687808,0.28588239,117910.0,117900.0,0.003]
[1752874688018,0.28600207,117910.0,117900.0,0.003]
[1752874688224,0.28600207,117910.0,117900.0,0.13448]
[1752874688430,0.28600207,117910.0,117900.0,0.13348]
[1752874688614,0.28600207,117910.0,117900.0,0.49586634]
[1752874688812,0.28600207,117910.0,117900.0,0.49686634]
[1752874689291,0.28600207,117910.0,117900.0,0.49586634]
[1752874689505,0.28900207,117910.0,117900.0,0.49586634]
[1752874689755,0.28900207,117910.0,117900.0,0.49386634]
[1752874690650,0.29200207,117910.0,117900.0,0.13148]
[1752874690896,0.29200207,117910.0,117900.0,0.49386634]
[1752874691453,0.29200207,117910.0,117900.0,0.13148]
[1752874691623,0.29200207,117910.0,117900.0,0.49386634]
[1752874692392,0.28340207,117910.0,117900.0,0.49386634]
[1752874692736,0.28340207,117910.0,117900.0,0.13148]
[1752874692944,0.28340207,117910.0,117900.0,0.49386634]
[1752874694548,0.28340207,117910.0,117900.0,0.13148]
[1752874694774,0.30340207,117910.0,117900.0,0.49386634]
[1752874694965,0.30340207,117910.0,117900.0,0.36238634]
[1752874695082,0.30340207,117910.0,117900.0,0.49386634]
[1752874695797,0.30340207,117910.0,117900.0,0.13148]
[1752874695983,0.30340207,117910.0,117900.0,0.49386634]
[1752874699663,0.30340207,117910.0,117900.0,0.66350162]
[1752874699850,0.30340207,117910.0,117900.0,0.67940162]
[1752874700486,0.30340207,117910.0,117900.0,0.70378338]
[1752874700686,0.30340207,117910.0,117900.0,0.69530162]
[1752874700993,0.29492125,117910.0,117900.0,0.69530162]
[1752874701696,0.29492125,117910.0,117900.0,0.69480162]
[1752874702131,0.28644035,117910.0,117900.0,0.69480162]
[1752874702773,0.28644035,117910.0,117900.0,0.33241528]
[1752874703134,0.28644035,117910.0,117900.0,0.69480162]
[1752874703722,0.28644035,117910.0,117900.0,0.70328338]
[1752874703922,0.28644035,117910.0,117900.0,0.69480162]
[1752874706078,0.28644035,117910.0,117900.0,0.33241528]
[1752874706273,0.28644035,117910.0,117900.0,0.69480162]
[1752874709187,0.28644035,117910.0,117900.0,0.52516634]
[1752874709615,0.28644035,117910.0,117900.0,0.50972634]
[1752874709831,0.28644035,117910.0,117900.0,0.37828634]
[1752874710035,0.28644035,117910.0,117900.0,0.50972634]
[1752874710705,0.28644035,117910.0,117900.0,0.54792162]
[1752874710908,0.28644035,117910.0,117900.0,0.67936162]
[1752874711285,0.28644035,117910.0,117900.0,0.69536162]
[1752874712853,0.29492125,117910.0,117900.0,0.70384338]
[1752874713474,0.29492125,117910.0,117900.0,0.33297528]
[1752874713866,0.29492125,117910.0,117900.0,0.70384338]
[1752874714104,0.29492125,117910.0,117900.0,0.71232507]
[1752874714266,0.29492125,117910.0,117900.0,0.70384338]
[1752874715242,0.29492125,117910.0,117900.0,0.71232507]
[1752874715720,0.29492125,117910.0,117900.0,0.70384338]
[1752874715921,0.29492125,117910.0,117900.0,0.71232507]
[1752874716711,0.29492125,117910.0,117900.0,0.72080669]
[1752874716861,0.29492125,117910.0,117900.0,0.34993873]
[1752874717079,0.29492125,117910.0,117900.0,0.71232507]
[1752874718151,0.29492125,117910.0,117900.0,0.72080669]
[1752874718507,0.29492125,117910.0,117900.0,0.71232507]
[1752874718840,0.13378104,117910.0,117900.0,0.72080669]
[1752874719071,0.14226201,117910.0,117900.0,0.90223341]
[1752874719475,0.15074189,117910.0,117900.0,0.91919635]
[1752874719873,0.14759182,117910.0,117900.0,0.92121635]
[1752874720018,0.14759189,117910.0,117900.0,0.92121606]
[1752874720217,0.14759189,117910.0,117900.0,0.91273466]
[1752874720890,0.15607279,117910.0,117900.0,0.89577165]
[1752874721270,0.14759182,117910.0,117900.0,0.89577165]
[1752874721523,0.13911121,117910.0,117900.0,0.91273452]
[1752874721904,0.14214114,117910.0,117900.0,0.91273445]
[1752874722199,0.14214114,117910.0,117900.0,0.91273452]
[1752874722415,0.15062189,117910.0,117900.0,0.91273452]
[1752874722619,0.15062189,117910.0,117900.0,0.92121585]
[1752874722876,0.15062189,117910.0,117900.0,0.91273452]
[1752874723099,0.15062189,117910.0,117900.0,0.90425312]
[1752874723317,0.15062189,117910.0,117900.0,0.91273452]
[1752874723540,0.15062189,117910.0,117900.0,0.89577165]
[1752874723753,0.15607293,117910.0,117900.0,0.90425319]
[1752874724197,0.15607293,117910.0,117900.0,0.89577165]
[1752874724198,0.15607286,117910.0,117900.0,0.89577165]
[1752874724404,0.15607286,117910.0,117900.0,0.36044013]
[1752874724622,0.1475924,117910.0,117900.0,0.34347697]
[1752874724900,0.30025214,117910.0,117900.0,0.34347704]
[1752874725101,0.30328214,117910.0,117900.0,0.89375179]
[1752874725357,0.30328214,117910.0,117900.0,0.90223341]
[1752874725567,0.30328214,117910.0,117900.0,0.89375179]
[1752874725773,0.30328214,117910.0,117900.0,0.90223341]
[1752874726173,0.30328214,117910.0,117900.0,0.89375179]
[1752874726588,0.30328214,117910.0,117900.0,0.90223341]
[1752874726871,0.30328214,117910.0,117900.0,0.35842035]
[1752874727046,0.30328214,117910.0,117900.0,0.90223341]
[1752874727385,0.30873275,117910.0,117900.0,0.90425341]
[1752874727592,0.30873275,117910.0,117900.0,0.91273495]
[1752874727799,0.30873275,117910.0,117900.0,0.90425341]
[1752874728354,0.30025214,117910.0,117900.0,0.89577179]
[1752874728748,0.29177132,117910.0,117900.0,0.89577179]
[1752874729992,0.29480132,117910.0,117900.0,0.89577179]
[1752874730166,0.29480132,117910.0,117900.0,0.71765482]
[1752874730672,0.28632035,117910.0,117900.0,0.71765482]
[1752874730874,0.28632035,117910.0,117900.0,0.70917306]
[1752874731383,0.28632035,117910.0,117900.0,0.16536]
[1752874731583,0.28632035,117910.0,117900.0,0.70917306]
[1752874732230,0.28632035,117910.0,117900.0,0.70989306]
[1752874733034,0.28632035,117910.0,117900.0,0.16406]
[1752874733232,0.28632035,117910.0,117900.0,0.70787306]
[1752874733456,0.19511264,117880.0,117870.0,0.18116932]
[1752874733685,0.18867995,117880.0,117870.0,0.27392653]
[1752874733909,0.18867995,117880.0,117870.0,0.43824653]
[1752874734121,0.18019711,117880.0,117870.0,0.43824653]
[1752874734562,0.18019711,117880.0,117870.0,0.44126653]
[1752874734772,0.18019711,117880.0,117870.0,0.43824653]
[1752874734773,0.23827424,117880.0,117870.0,0.43824653]
[1752874734989,0.27686435,117880.0,117870.0,0.0322]
[1752874735234,0.17817514,117870.0,117860.0,0.1644]
[1752874735465,0.18325514,117870.0,117860.0,0.43638653]
[1752874736933,0.18325514,117870.0,117860.0,0.30410653]
[1752874736934,0.40100542,117870.0,117860.0,0.30410653]
[1752874737158,0.16969285,117860.0,117850.0,0.39494068]
[1752874737383,0.26028313,117860.0,117850.0,0.03209024]
[1752874737588,0.26028313,117860.0,117850.0,0.14923024]
[1752874737796,0.28576313,117860.0,117850.0,0.14923024]
[1752874739012,0.28576313,117860.0,117850.0,0.15023024]
[1752874739164,0.35303959,117860.0,117850.0,0.15023024]
[1752874739843,0.35303959,117860.0,117850.0,0.15015024]
[1752874740269,0.28576313,117860.0,117850.0,0.15015024]
[1752874740427,0.26028313,117860.0,117850.0,0.51300068]
[1752874741137,0.26028313,117860.0,117850.0,0.38084068]
[1752874741345,0.26028313,117860.0,117850.0,0.51300068]
[1752874741796,0.26028313,117860.0,117850.0,0.52810068]
[1752874742373,0.26028313,117860.0,117850.0,0.16525024]
[1752874742577,0.32755959,117860.0,117850.0,0.16525024]
[1752874743187,0.32755959,117860.0,117850.0,0.03309024]
[1752874743566,0.26028313,117860.0,117850.0,0.39594068]
[1752874743785,0.26028313,117860.0,117850.0,0.38084068]
[1752874744000,0.26028313,117860.0,117850.0,0.01799024]
[1752874744196,0.39248313,117860.0,117850.0,0.01799024]
[1752874745068,0.39248313,117860.0,117850.0,0.03449024]
[1752874745276,0.447065,117860.0,117850.0,0.03449024]
[1752874746927,0.447065,117860.0,117850.0,0.00149024]
[1752874747129,0.447065,117860.0,117850.0,0.01789024]
[1752874748086,0.447065,117860.0,117850.0,0.03319024]
[1752874749708,0.45554935,117860.0,117850.0,0.03319024]
[1752874755215,0.45554935,117860.0,117850.0,0.01809024]
[1752874755422,0.81839979,117860.0,117850.0,0.00149024]
[1752874755834,0.85248179,117860.0,117850.0,0.00149024]
[1752874756047,1.19248179,117860.0,117850.0,0.00149024]
[1752874756477,1.19216179,117860.0,117850.0,1e-08]
[1752874756894,1.06028179,117860.0,117850.0,1e-08]
[1752874757102,1.06028179,117860.0,117840.0,1e-08]
[1752874757103,0.5496429,117850.0,117840.0,1e-08]
[1752874757247,0.7230228,117850.0,117840.0,1e-08]
[1752874757447,0.7262028,117850.0,117840.0,1e-08]
[1752874758277,0.36635236,117850.0,117840.0,1e-08]
[1752874758519,0.7292028,117850.0,117840.0,1e-08]
[1752874759126,0.7342028,117850.0,117840.0,1e-08]
[1752874761230,0.36275236,117850.0,117840.0,1e-08]
[1752874761431,0.27381274,117850.0,117840.0,0.39634045]
[1752874761642,0.27381274,117850.0,117840.0,0.39957045]
[1752874761643,0.40454274,117850.0,117840.0,0.39957045]
[1752874761876,0.40454274,117850.0,117840.0,0.03672001]
[1752874762208,0.39954274,117850.0,117840.0,0.03672001]
[1752874762408,0.4590145,117850.0,117840.0,0.03672001]
[1752874762889,0.4620145,117850.0,117840.0,0.03672001]
[1752874763425,0.4590145,117850.0,117840.0,0.03672001]
[1752874763626,0.4610145,117850.0,117840.0,0.03672001]
[1752874764009,0.46949964,117850.0,117840.0,0.03672001]
[1752874764618,0.005,117850.0,117840.0,0.59474947]
[1752874764795,0.14632478,117850.0,117840.0,0.59474947]
[1752874765682,0.15480971,117850.0,117840.0,0.59474947]
[1752874765977,0.005,117850.0,117840.0,0.59474947]
[1752874766518,0.003,117850.0,117840.0,0.59474947]
[1752874766971,0.004,117850.0,117840.0,0.59474947]
[1752874767165,0.001,117850.0,117840.0,0.59474947]
[1752874767580,0.002,117850.0,117840.0,0.59474947]
[1752874769604,0.01048485,117850.0,117840.0,0.59474947]
[1752874770482,0.01048478,117850.0,117840.0,0.59474947]
[1752874770892,0.002,117850.0,117840.0,0.59474947]
[1752874776074,0.001,117850.0,117840.0,0.59474947]
[1752874776298,0.001,117850.0,117840.0,1.40850862]
[1752874777073,0.01696675,117870.0,117860.0,0.2277459]
[1752874777337,0.01696675,117870.0,117860.0,0.72511634]
[1752874777492,0.01696675,117870.0,117860.0,0.72806634]
[1752874777925,0.00809544,117880.0,117870.0,0.04956704]
[1752874778156,0.00848262,117880.0,117870.0,0.60613453]
[1752874778358,0.00848262,117880.0,117870.0,0.60401355]
[1752874779193,0.01696539,117880.0,117870.0,0.60401355]
[1752874780229,0.0284483,117880.0,117870.0,0.60401355]
[1752874780528,0.03484947,117880.0,117870.0,0.60401355]
[1752874780728,0.03584947,117880.0,117870.0,0.60401355]
[1752874781535,0.04433245,117880.0,117870.0,0.60401355]
[1752874781740,0.03584947,117880.0,117870.0,0.60401355]
[1752874782766,0.04433252,117880.0,117870.0,0.60401355]
[1752874783172,0.04433245,117880.0,117870.0,0.60401355]
[1752874784805,0.05281558,117880.0,117870.0,0.60401355]
[1752874784959,0.0528155,117880.0,117870.0,0.60401355]
[1752874785583,0.05281601,117880.0,117870.0,0.60401363]
[1752874785881,0.04433288,117880.0,117870.0,0.60401363]
[1752874786014,0.04433288,117880.0,117870.0,0.61249704]
[1752874786401,0.05281601,117880.0,117870.0,0.60401363]
[1752874786612,0.05281601,117880.0,117870.0,0.61249704]
[1752874786955,0.03584983,117880.0,117870.0,0.61249704]
[1752874788610,0.02744859,117880.0,117870.0,0.61249704]
[1752874789316,0.19915265,117880.0,117870.0,0.03755]
[1752874789526,0.1781623,117870.0,117860.0,0.20119285]
[1752874789747,0.1802023,117870.0,117860.0,0.20119285]
[1752874789960,0.1831523,117870.0,117860.0,0.20119285]
[1752874790413,0.1831523,117870.0,117860.0,0.56404329]
[1752874790607,0.24235995,117870.0,117860.0,0.56404329]
[1752874790854,0.24235995,117870.0,117860.0,0.56504329]
[1752874791083,0.24235995,117870.0,117860.0,0.0325]
[1752874792554,0.24235995,117870.0,117860.0,0.0166]
[1752874792870,0.24235995,117870.0,117860.0,0.001]
[1752874792871,0.32787023,117870.0,117860.0,0.001]
[1752874794188,0.69512067,117870.0,117860.0,0.001]
[1752874794438,0.69932067,117870.0,117860.0,0.001]
[1752874795632,0.18667746,117850.0,117840.0,0.01590001]
[1752874795982,0.32063746,117850.0,117840.0,0.03090001]
[1752874796158,0.35627578,117850.0,117840.0,0.03090001]
[1752874797053,0.35627578,117850.0,117840.0,0.03390001]
[1752874800243,0.35922578,117850.0,117840.0,0.03390001]
[1752874800493,0.32708282,117850.0,117840.0,0.58839375]
[1752874800689,0.0254555,117850.0,117840.0,0.58839389]
[1752874800945,0.30146576,117860.0,117850.0,0.21827768]
[1752874800946,0.02545269,117860.0,117850.0,0.21827768]
[1752874801149,0.25840873,117870.0,117860.0,0.16969285]
[1752874801150,0.1781623,117870.0,117860.0,0.16969285]
[1752874801341,0.21442634,117880.0,117870.0,0.0316]
[1752874801493,0.34646634,117880.0,117870.0,0.03366]
[1752874801683,0.34842634,117880.0,117870.0,0.03366]
[1752874802691,0.35054634,117880.0,117870.0,0.03366]
[1752874802946,0.35376634,117880.0,117870.0,0.03366]
[1752874803109,0.22360634,117880.0,117870.0,0.20333845]
[1752874803325,0.33087651,117880.0,117870.0,0.22352607]
[1752874803803,0.33087651,117880.0,117870.0,0.57789266]
[1752874804001,0.16969507,117880.0,117870.0,0.23200941]
[1752874804121,0.16969507,117880.0,117870.0,0.24049282]
[1752874804359,0.33935913,117880.0,117870.0,0.22352592]
[1752874804583,0.33935913,117880.0,117870.0,0.23200955]
[1752874804821,0.37329427,117880.0,117870.0,0.20655845]
[1752874805024,0.36929427,117880.0,117870.0,0.21504237]
[1752874805284,0.37129427,117880.0,117870.0,0.22352614]
[1752874805784,0.23913427,117880.0,117870.0,0.20655845]
[1752874806134,0.23913427,117880.0,117870.0,0.21504237]
[1752874806644,0.23913427,117880.0,117870.0,0.22352622]
[1752874807234,0.23913427,117880.0,117870.0,0.23200999]
[1752874807712,0.23913427,117880.0,117870.0,0.24049369]
[1752874808514,0.23913427,117880.0,117870.0,0.22352622]
[1752874808928,0.23913427,117880.0,117870.0,0.23200992]
[1752874809131,0.23913427,117880.0,117870.0,0.24049355]
[1752874809333,0.07795305,117880.0,117870.0,0.24049355]
[1752874809536,0.08643625,117880.0,117870.0,0.23200992]
[1752874809739,0.07795305,117880.0,117870.0,0.24049348]
[1752874809979,0.07795305,117880.0,117870.0,0.24049355]
[1752874810214,0.08643618,117880.0,117870.0,0.24049355]
[1752874810442,0.07795305,117880.0,117870.0,0.24897711]
[1752874810651,0.07795305,117880.0,117870.0,0.22352622]
[1752874810869,0.07795305,117880.0,117870.0,0.23200999]
[1752874811089,0.24761711,117880.0,117870.0,0.23200999]
[1752874811511,0.25610031,117880.0,117870.0,0.23200999]
[1752874811747,0.07795305,117880.0,117870.0,0.23200999]
[1752874811968,0.02705216,117880.0,117870.0,0.24897718]
[1752874812164,0.02705216,117880.0,117870.0,0.24897725]
[1752874812448,0.02705216,117880.0,117870.0,0.24897682]
[1752874812648,0.03553536,117880.0,117870.0,0.2404934]
[1752874812860,0.20519942,117880.0,117870.0,0.22352607]
[1752874813070,0.20519942,117880.0,117870.0,0.2150423]
[1752874813513,0.20519942,117880.0,117870.0,0.22352607]
[1752874813813,0.20519942,117880.0,117870.0,0.2150423]
[1752874814296,0.18823353,117880.0,117870.0,0.03688]
[1752874815526,0.19019353,117880.0,117870.0,0.03688]
[1752874815826,0.21988906,117880.0,117870.0,0.0316]
[1752874816029,0.22310906,117880.0,117870.0,0.0316]
[1752874816492,0.17816222,117870.0,117860.0,0.16332]
[1752874816710,0.18334222,117870.0,117860.0,0.16332]
[1752874817750,0.18334222,117870.0,117860.0,0.0316]
[1752874817960,0.26910184,117870.0,117860.0,0.1634]
[1752874818806,0.26910184,117870.0,117860.0,0.1644]
[1752874819236,0.27758554,117870.0,117860.0,0.1644]
[1752874819644,0.27758554,117870.0,117860.0,0.33409285]
[1752874819845,0.26910184,117870.0,117860.0,0.33409285]
[1752874820918,0.26588184,117870.0,117860.0,0.33615285]
[1752874821121,0.26588184,117870.0,117860.0,0.33937285]
[1752874821345,0.26392184,117870.0,117860.0,0.33937285]
[1752874821556,0.1951297,117870.0,117860.0,0.35634191]
[1752874822031,0.0169669,117870.0,117860.0,0.37331046]
[1752874822230,0.03393423,117870.0,117860.0,0.37331054]
[1752874822469,0.03393394,117870.0,117860.0,0.38179488]
[1752874822652,0.07164718,117870.0,117860.0,0.38179488]
[1752874823690,0.06316377,117870.0,117860.0,0.38179488]
[1752874824052,0.07164747,117870.0,117860.0,0.38179488]
[1752874824260,0.06316377,117870.0,117860.0,0.38179488]
[1752874824463,0.0716474,117870.0,117860.0,0.38179488]
[1752874825081,0.0736074,117870.0,117860.0,0.74464532]
[1752874825697,0.0736074,117870.0,117860.0,0.7361609]
[1752874825994,0.08209117,117870.0,117860.0,0.7361609]
[1752874827152,0.0820911,117870.0,117860.0,0.7361609]
[1752874827398,0.03589416,117870.0,117860.0,0.7361609]
[1752874827612,0.03393416,117870.0,117860.0,0.37331046]
[1752874828022,0.04241793,117870.0,117860.0,0.37331046]
[1752874828229,0.04241844,117870.0,117860.0,0.73616098]
[1752874828408,0.04437844,117870.0,117860.0,0.73616098]
[1752874828676,0.26129828,117870.0,117860.0,0.72767677]
[1752874828884,0.08313634,117870.0,117860.0,0.74464511]
[1752874829089,0.06616843,117870.0,117860.0,0.74464511]
[1752874829298,0.01696676,117870.0,117860.0,0.73666004]
[1752874829734,0.00848327,117870.0,117860.0,0.73666004]
[1752874829910,0.01696668,117870.0,117860.0,0.73666004]
[1752874830960,0.00848327,117870.0,117860.0,0.73666004]
[1752874831793,0.01696668,117870.0,117860.0,0.73666004]
[1752874832327,0.00848327,117870.0,117860.0,0.73666004]
[1752874832533,0.01696668,117870.0,117860.0,0.73666004]
[1752874832744,0.00848327,117870.0,117860.0,0.73666004]
[1752874832946,0.01696668,117870.0,117860.0,0.73666004]
[1752874833149,0.00848327,117870.0,117860.0,0.73666004]
[1752874834094,0.24242151,117880.0,117870.0,0.22662934]
[1752874834301,0.25090456,117880.0,117870.0,0.23164934]
[1752874834508,0.24242151,117880.0,117870.0,0.58601637]
[1752874834716,0.24242151,117880.0,117870.0,0.59449978]
[1752874834929,0.24242151,117880.0,117870.0,0.59449986]
[1752874834930,0.24450151,117880.0,117870.0,0.59449986]
[1752874835132,0.25298449,117880.0,117870.0,0.59991327]
[1752874835337,0.25298449,117880.0,117870.0,0.59142993]
[1752874835554,0.25298449,117880.0,117870.0,0.59991342]
[1752874835997,0.25298449,117880.0,117870.0,0.60839683]
[1752874836191,0.16539385,117880.0,117870.0,0.61146683]
[1752874836420,0.16539378,117880.0,117870.0,0.61146683]
[1752874836604,0.16639371,117880.0,117870.0,0.61146683]
[1752874836841,0.16847371,117880.0,117870.0,0.61146683]
[1752874837717,0.15999087,117880.0,117870.0,0.61146683]
[1752874837905,0.16847378,117880.0,117870.0,0.61146683]
[1752874838516,0.15999087,117880.0,117870.0,0.61146683]
[1752874838951,0.16847378,117880.0,117870.0,0.61146683]
[1752874839323,0.16847371,117880.0,117870.0,0.61146683]
[1752874839932,0.15999087,117880.0,117870.0,0.61146683]
[1752874840276,0.15791087,117880.0,117870.0,0.61146683]
[1752874840614,0.14942817,117880.0,117870.0,0.61146683]
[1752874842899,0.15791086,117880.0,117870.0,0.61146683]
[1752874843868,0.1663937,117880.0,117870.0,0.61146683]
[1752874844856,0.02619086,117880.0,117870.0,0.61146683]
[1752874845060,0.0346737,117880.0,117870.0,0.61146683]
[1752874845277,0.03467363,117880.0,117870.0,0.61146683]
[1752874846544,0.03467363,117880.0,117870.0,0.24861639]
[1752874846772,0.03467363,117880.0,117870.0,0.61146683]
[1752874849119,0.03467363,117880.0,117870.0,0.74306683]
[1752874849330,0.04315661,117880.0,117870.0,0.74306683]
[1752874851330,0.05163966,117880.0,117870.0,0.74306683]
[1752874853861,0.05163966,117880.0,117870.0,0.38021639]
[1752874854032,0.05164017,117880.0,117870.0,0.74306683]
[1752874854415,0.22130423,117880.0,117870.0,0.74306683]
[1752874854622,0.22130474,117880.0,117870.0,0.74306683]
[1752874854998,0.22130474,117880.0,117870.0,0.65226724]
[1752874855603,0.05164068,117880.0,117870.0,0.65226724]
[1752874855935,0.04315748,117880.0,117870.0,0.65226724]
[1752874856515,0.22130474,117880.0,117870.0,0.65226724]
[1752874857884,0.25081573,117880.0,117870.0,0.65226724]
[1752874858118,0.08115167,117880.0,117870.0,0.65226724]
[1752874859109,0.25081573,117880.0,117870.0,0.64378383]
[1752874859314,0.23384998,117880.0,117870.0,0.50370034]
[1752874860672,0.23384998,117880.0,117870.0,0.49521678]
[1752874861030,0.2220838,117880.0,117870.0,0.30650085]
[1752874861275,0.2210838,117880.0,117870.0,0.6058293]
[1752874861417,0.2210838,117880.0,117870.0,0.61431307]
[1752874861619,0.19157281,117880.0,117870.0,0.62279677]
[1752874862020,0.19157281,117880.0,117870.0,0.62490677]
[1752874862223,0.19157281,117880.0,117870.0,0.63339033]
[1752874862569,0.18852281,117880.0,117870.0,0.63339033]